bitfinex/quotes_ETHUSD_20250821
["timestamp","ask_amount","ask_price","bid_price","bid_amount"]
[1755799603996,0.2958,4251.6,4251.5,0.001]
[1755799604492,0.02939931,4251.8,4251.5,0.001]
[1755799605085,0.02939862,4251.9,4251.5,0.001]
[1755799605464,3.0,4251.8,4251.5,0.001]
[1755799605659,0.0294,4251.7,4251.5,0.001]
[1755799605970,13.98777911,4251.6,4251.5,0.001]
[1755799606160,21.41997911,4251.6,4251.5,0.001]
[1755799606991,20.99077911,4251.6,4251.5,0.001]
[1755799607189,21.41997911,4251.6,4251.5,0.001]
[1755799608162,20.99077911,4251.6,4251.5,0.001]
[1755799608397,23.17030776,4251.6,4251.5,0.001]
[1755799608606,23.59950776,4251.6,4251.5,0.001]
[1755799608965,23.59750776,4251.6,4251.5,0.001]
[1755799610163,5.17952865,4251.6,4251.5,0.001]
[1755799610369,3.0,4251.6,4251.5,0.3137]
[1755799610564,3.02940069,4251.6,4251.5,0.3137]
[1755799611571,3.0,4251.6,4251.5,0.7839]
[1755799613290,0.002,4252.5,4251.5,0.7839]
[1755799613490,0.002,4252.5,4251.6,0.4702]
[1755799613693,0.002,4252.5,4252.4,0.3127]
[1755799613914,0.002,4253.0,4252.7,2.35144731]
[1755799614222,0.002,4253.4,4253.2,2.35116281]
[1755799614374,0.002,4253.4,4253.3,2.1217]
[1755799614922,0.002,4253.4,4253.3,4.96652675]
[1755799615123,0.002,4253.4,4253.3,4.9430156]
[1755799616180,0.002,4253.4,4253.3,5.7206156]
[1755799616895,0.002,4253.4,4253.3,5.8929763]
[1755799618179,0.002,4253.4,4253.3,22.58495541]
[1755799618180,1e-08,4253.4,4253.3,22.58495541]
[1755799619178,1e-08,4253.8,4253.7,3.01089451]
[1755799619379,1e-08,4253.8,4253.7,6.34710345]
[1755799619618,1e-08,4253.8,4253.7,6.91139451]
[1755799620715,1e-08,4254.0,4253.9,3.01078398]
[1755799620917,1e-08,4254.0,4253.9,24.05497092]
[1755799621120,1e-08,4254.0,4253.9,24.03146309]
[1755799621420,1e-08,4254.0,4253.9,24.50166309]
[1755799624847,0.002,4254.9,4254.8,6.01028673]
[1755799624999,0.002,4254.9,4254.8,26.31625468]
[1755799625320,0.002,4254.9,4254.8,22.89405468]
[1755799625510,0.002,4254.9,4254.8,13.21307557]
[1755799629424,0.002,4254.9,4254.8,13.20807557]
[1755799629821,0.002,4254.9,4254.8,9.20207557]
[1755799630024,0.002,4254.9,4254.8,13.20807557]
[1755799630405,0.002,4254.9,4254.8,13.20707557]
[1755799634922,0.002,4254.9,4254.8,9.20207557]
[1755799635229,0.002,4254.9,4254.8,13.20207557]
[1755799635744,0.002,4254.9,4254.8,17.49207557]
[1755799636150,0.002,4254.9,4254.8,13.49207557]
[1755799636452,0.2897,4254.9,4254.8,4.75917557]
[1755799636755,0.7351,4254.9,4254.8,5.9256]
[1755799637331,0.7351,4254.9,4254.8,6.5856]
[1755799638046,0.7351,4254.9,4254.8,5.9256]
[1755799638251,0.7351,4254.9,4254.8,2.10571285]
[1755799638450,0.7351,4254.9,4254.8,5.9256]
[1755799638750,0.7351,4254.9,4254.8,5.808]
[1755799639733,0.2897,4254.9,4254.8,5.808]
[1755799639937,0.2897,4254.9,4254.8,6.3888]
[1755799640653,0.002,4254.9,4254.8,7.22328854]
[1755799640819,0.002,4254.9,4254.8,10.00047527]
[1755799641123,0.002,4254.9,4254.8,10.43777527]
[1755799642312,0.002,4254.9,4254.8,13.43777527]
[1755799643159,0.002,4254.9,4254.8,27.12975438]
[1755799643616,0.002,4254.9,4254.8,23.13075438]
[1755799643816,0.002,4254.9,4254.8,27.12975438]
[1755799644716,0.002,4254.9,4254.8,9.00147527]
[1755799644950,0.002,4254.9,4254.8,12.99947527]
[1755799645629,0.002,4254.9,4254.8,13.43677527]
[1755799646545,0.002,4254.9,4254.8,12.99947527]
[1755799646968,0.002,4254.9,4254.8,12.99747527]
[1755799647262,0.002,4254.9,4254.8,9.00147527]
[1755799647572,0.002,4254.9,4254.8,27.12575438]
[1755799648030,0.002,4254.9,4254.8,22.69345438]
[1755799648235,2.0,4255.0,4254.9,6.01023149]
[1755799648560,2.0,4255.0,4254.9,7.14725727]
[1755799648720,2.0,4255.0,4254.9,10.83195727]
[1755799648919,2.0,4255.0,4254.9,8.14125727]
[1755799649149,2.2877,4255.0,4254.9,8.53838227]
[1755799649350,2.2877,4255.0,4254.9,8.53938227]
[1755799649520,2.7331,4255.0,4254.9,3.83795727]
[1755799649734,2.7331,4255.0,4254.9,7.83495727]
[1755799649931,2.7331,4255.0,4254.9,0.82772578]
[1755799650132,2.7331,4255.0,4254.9,7.17595727]
[1755799650336,2.2877,4255.0,4254.9,7.83595727]
[1755799650543,2.7331,4255.0,4254.9,4.82572578]
[1755799650749,2.7331,4255.0,4254.9,6.34823149]
[1755799650930,2.7331,4255.0,4254.8,4.45136402]
[1755799651134,0.4454,4254.9,4254.8,2.10108854]
[1755799651331,0.7331,4254.9,4254.8,5.806]
[1755799651539,0.7331,4254.9,4254.8,1.809]
[1755799651722,0.7331,4254.9,4254.8,5.806]
[1755799652663,0.7331,4254.9,4254.8,1.809]
[1755799652860,0.7331,4254.9,4254.8,3.997]
[1755799652861,1.03578789,4254.9,4254.8,3.997]
[1755799653025,1.03578789,4254.9,4254.1,1.807]
[1755799653231,0.4454,4254.8,4254.1,1.807]
[1755799653423,0.2877,4254.2,4254.1,1.807]
[1755799653683,0.7331,4254.2,4254.1,5.804]
[1755799653848,0.7331,4254.2,4254.1,6.3864]
[1755799654027,0.2877,4254.2,4254.1,8.73707346]
[1755799654224,0.2877,4254.2,4254.1,2.3894]
[1755799654424,0.7331,4254.2,4254.1,5.806]
[1755799658044,0.7331,4254.2,4254.1,5.807]
[1755799658245,0.2877,4254.2,4254.1,5.807]
[1755799658469,2.4533,4255.0,4254.1,6.1111]
[1755799658662,2.4533,4255.0,4254.3,2.35056295]
[1755799658874,2.4533,4255.0,4254.4,4.002]
[1755799659077,2.4533,4255.0,4254.4,6.3524601]
[1755799659253,2.0,4255.0,4254.9,2.35023149]
[1755799659454,2.0,4255.0,4254.9,8.15923149]
[1755799659685,2.0,4255.0,4254.9,8.93683149]
[1755799660762,2.0,4255.0,4254.9,9.24093149]
[1755799661083,2.0,4255.0,4254.9,10.04457394]
[1755799661378,2.0,4255.0,4254.9,13.04457394]
[1755799663586,2.0,4255.0,4254.9,13.04557394]
[1755799663754,2.0,4255.0,4254.9,12.58767394]
[1755799664656,2.0,4255.0,4254.9,8.58467394]
[1755799664881,2.0,4255.0,4254.9,12.58667394]
[1755799665087,2.0,4255.0,4254.9,13.04457394]
[1755799667185,2.0,4255.0,4254.9,9.04257394]
[1755799667381,2.0,4255.0,4254.9,13.04257394]
[1755799668915,2.0,4255.0,4254.9,9.04257394]
[1755799669199,2.0,4255.0,4254.9,13.04257394]
[1755799669564,2.0,4255.0,4254.9,13.04357394]
[1755799669983,2.0,4255.0,4254.9,9.04257394]
[1755799670184,2.0,4255.0,4254.9,13.04257394]
[1755799670767,0.002,4255.4,4255.3,3.01001057]
[1755799670973,0.002,4255.4,4255.3,11.29022011]
[1755799671170,0.002,4255.4,4255.3,11.26672001]
[1755799671374,0.002,4255.4,4255.3,11.72462001]
[1755799671771,0.002,4255.4,4255.3,11.26672001]
[1755799672101,0.002,4255.4,4255.3,6.96362001]
[1755799672400,0.002,4255.4,4255.3,11.17843701]
[1755799672602,0.002,4255.4,4255.3,11.48253701]
[1755799672799,0.03085942,4255.6,4255.5,2.34990012]
[1755799672998,0.03085942,4255.6,4255.5,7.16073246]
[1755799673182,0.33345942,4255.6,4255.5,7.13723346]
[1755799673961,0.33345942,4255.6,4255.5,3.13823346]
[1755799674301,0.30345942,4255.6,4255.5,7.13723346]
[1755799674667,0.00085942,4255.6,4255.5,7.44133346]
[1755799674863,0.00085942,4255.6,4255.5,7.13723346]
[1755799675209,0.75675942,4255.6,4255.5,7.22371712]
[1755799675862,0.30345942,4255.6,4255.5,7.22371712]
[1755799676274,0.75675942,4255.6,4255.5,7.22356097]
[1755799676477,0.75675942,4255.6,4255.5,0.87566085]
[1755799676782,0.75675942,4255.6,4255.5,0.21566085]
[1755799676984,0.75675942,4255.6,4255.5,4.21266085]
[1755799679376,0.75675942,4255.6,4255.5,4.21284825]
[1755799679583,0.75675942,4255.6,4255.5,4.21284779]
[1755799679903,0.75675942,4255.6,4255.5,0.21587293]
[1755799680105,0.75675942,4255.6,4255.5,4.21287293]
[1755799680313,0.75675942,4255.6,4255.5,0.21587293]
[1755799680493,0.75675942,4255.6,4255.5,4.21287293]
[1755799681207,0.75675942,4255.6,4255.5,0.21587293]
[1755799681392,0.75675942,4255.6,4255.5,4.21287293]
[1755799683281,0.75675942,4255.6,4255.5,0.21587293]
[1755799683699,3.75675942,4255.6,4255.5,0.21587293]
[1755799683988,5.5363435,4255.6,4255.5,0.21587293]
[1755799684186,5.50697044,4255.6,4255.1,3.995]
[1755799684380,5.05367044,4255.6,4255.2,0.21619726]
[1755799684580,5.05367044,4255.6,4254.0,5.649]
[1755799684581,0.4533,4255.5,4255.3,0.2162031]
[1755799684777,0.4533,4255.5,4254.1,1.807]
[1755799684778,0.33197444,4255.4,4254.1,1.807]
[1755799684987,3.0,4254.7,4254.5,0.21627177]
[1755799685184,0.78527996,4254.6,4254.0,0.001]
[1755799685483,0.78527996,4254.6,4254.5,0.2162067]
[1755799685683,1.44527996,4254.6,4254.5,0.2162067]
[1755799685880,3.66,4254.5,4254.0,0.001]
[1755799686188,6.80570656,4254.5,4254.0,0.001]
[1755799686387,16.69197911,4254.1,4254.0,0.001]
[1755799686592,16.99457911,4254.1,4254.0,0.001]
[1755799686794,17.44787911,4254.1,4254.0,0.001]
[1755799691483,3.75675942,4254.1,4254.0,0.001]
[1755799691681,5.93071668,4254.1,4254.0,0.001]
[1755799691922,33.66,4254.0,4253.5,0.001]
[1755799692086,17.65157911,4253.6,4253.5,0.001]
[1755799692287,23.46257911,4253.6,4253.5,0.001]
[1755799692615,23.93467911,4253.6,4253.5,0.001]
[1755799692788,26.29681874,4253.6,4253.5,0.001]
[1755799693191,21.63381874,4253.6,4253.5,0.001]
[1755799693390,25.63681874,4253.6,4253.5,0.001]
[1755799693627,26.29681874,4253.6,4253.5,0.001]
[1755799694420,26.29767816,4253.6,4253.5,0.001]
[1755799694717,26.29767816,4253.6,4253.2,0.001]
[1755799694718,3.66,4253.5,4253.2,0.001]
[1755799694883,3.9596,4253.3,4253.2,0.001]
[1755799695289,3.9596,4253.3,4252.8,0.021]
[1755799695290,4.43255942,4253.3,4252.8,0.021]
[1755799695531,3.66,4252.8,4251.8,0.02]
[1755799695735,0.2996,4251.9,4251.8,0.02]
[1755799695906,7.33685804,4251.9,4251.8,0.02]
[1755799696101,9.88244314,4251.9,4251.8,0.02]
[1755799697111,5.40334314,4251.9,4251.8,0.02]
[1755799697301,5.87544314,4251.9,4251.8,0.02]
[1755799697820,5.40334314,4251.9,4251.8,0.02]
[1755799698319,5.87544314,4251.9,4251.8,0.02]
[1755799699130,3.77255942,4251.9,4251.8,0.02]
[1755799699298,3.32985804,4251.9,4251.8,0.02]
[1755799699499,3.77255942,4251.9,4251.8,0.02]
[1755799699705,3.80195804,4251.9,4251.8,0.02]
[1755799700220,3.00085942,4251.9,4251.8,0.307]
[1755799700727,3.00085942,4251.9,4251.8,0.02]
[1755799700889,8.47814536,4251.9,4251.8,0.02]
[1755799701092,9.13814536,4251.9,4251.8,0.02]
[1755799702237,8.47914536,4251.9,4251.8,0.02]
[1755799704517,22.83112447,4251.9,4251.8,0.02]
[1755799705227,24.64012447,4251.9,4251.8,0.02]
[1755799705393,24.64012447,4251.9,4251.8,0.021]
[1755799706697,5.81004536,4251.9,4251.8,0.021]
[1755799706930,9.81404536,4251.9,4251.8,0.021]
[1755799707128,10.28614536,4251.9,4251.8,0.021]
[1755799707442,3.70144536,4251.9,4251.8,0.021]
[1755799707643,4.00104536,4251.9,4251.8,0.021]
[1755799709601,8.47814536,4251.9,4251.8,0.021]
[1755799710003,8.00504536,4251.9,4251.8,0.021]
[1755799710532,8.59287441,4251.9,4251.8,0.021]
[1755799711223,8.12077441,4251.9,4251.8,0.021]
[1755799711424,4.00104536,4251.9,4251.8,0.021]
[1755799711628,7.70544536,4251.9,4251.8,0.308]
[1755799711847,8.00504536,4251.9,4251.8,0.021]
[1755799712204,7.70544536,4251.9,4251.8,0.021]
[1755799712404,7.70544536,4251.9,4251.8,0.308]
[1755799712807,7.70544536,4251.9,4251.8,0.021]
[1755799714011,0.70144536,4251.9,4251.8,0.308]
[1755799715004,3.73084398,4251.9,4251.8,0.021]
[1755799715223,3.73084398,4251.9,4251.5,0.001]
[1755799715224,0.66,4251.8,4251.5,0.001]
[1755799715419,16.99157911,4251.6,4251.5,0.001]
[1755799715830,17.46453853,4251.6,4251.5,0.001]
[1755799717816,16.99243853,4251.6,4251.5,0.001]
[1755799718158,17.46603853,4251.6,4251.5,0.001]
[1755799718643,16.99243853,4251.6,4251.5,0.001]
[1755799718855,19.35457816,4251.6,4251.5,0.001]
[1755799719247,5.36299905,4251.6,4251.5,0.3126]
[1755799719458,0.00085942,4251.6,4251.5,0.7831]
[1755799719959,0.00085942,4251.6,4251.5,0.001]
[1755799719960,0.34256011,4251.6,4251.5,0.001]
[1755799720139,0.81616011,4251.6,4251.5,0.001]
[1755799720338,0.00085942,4251.6,4251.5,0.001]
[1755799720641,7.00185942,4251.6,4251.5,0.3126]
[1755799720833,7.48634867,4251.6,4251.5,0.001]
[1755799721536,7.00185942,4251.6,4251.5,0.3126]
[1755799721716,7.00185942,4251.6,4251.5,0.7831]
[1755799722116,3.00085942,4251.6,4251.5,0.7831]
[1755799723681,0.00085942,4251.6,4251.5,0.7831]
[1755799724271,0.022,4252.8,4251.6,0.66]
[1755799724458,0.022,4252.8,4252.7,0.3116]
[1755799724660,0.03,4252.8,4252.7,0.3116]
[1755799724831,0.002,4253.3,4252.7,0.80561447]
[1755799725176,0.002,4253.3,4252.7,0.7821]
[1755799725343,0.002,4253.3,4252.7,0.3116]
[1755799725538,0.002,4253.3,4252.8,0.68266]
[1755799725758,0.002,4253.3,4253.2,0.3116]
[1755799726335,0.002,4253.3,4253.2,0.7821]
[1755799726539,0.002,4253.3,4252.8,0.4705]
[1755799726771,0.002,4253.3,4252.5,1.81]
[1755799727074,0.002,4253.3,4252.5,2.50855]
[1755799727283,0.002,4253.3,4252.5,2.03805]
[1755799727481,0.002,4253.3,4252.6,0.4705]
[1755799730973,0.002,4253.3,4252.5,1.81]
[1755799731142,0.3123,4252.6,4251.8,0.4905]
[1755799731339,0.02939447,4252.5,4251.8,0.72055]
[1755799731755,3.0,4253.2,4252.4,0.3116]
[1755799733270,0.02939032,4253.1,4252.4,0.3116]
[1755799733461,0.02939032,4253.1,4251.9,0.4705]
[1755799733865,3.0,4253.2,4251.9,0.4705]
[1755799734042,0.74766,4253.1,4251.9,0.4705]
[1755799734383,0.002,4253.3,4253.0,0.3116]
[1755799734582,3.002,4253.3,4253.0,0.3116]
[1755799734738,0.002,4253.3,4253.0,0.3116]
[1755799736778,0.002,4253.3,4253.0,0.7821]
[1755799736955,0.002,4253.3,4253.1,0.4705]
[1755799737150,0.002,4253.3,4253.2,0.3116]
[1755799737373,0.002,4253.3,4253.2,0.3351117]
[1755799737655,0.002,4253.3,4253.2,0.8056117]
[1755799737859,0.002,4253.3,4253.2,0.7821]
[1755799740860,0.002,4253.3,4253.2,0.3116]
[1755799741479,0.002,4253.3,4253.2,0.7821]
[1755799742202,0.002,4253.3,4252.6,1.81]
[1755799742403,0.4736,4253.2,4252.6,0.001]
[1755799742698,0.02939032,4253.1,4252.6,0.001]
[1755799743173,0.3123,4252.7,4252.6,0.001]
[1755799743375,0.0293917,4252.9,4252.6,0.3126]
[1755799743585,0.03138894,4253.3,4252.6,0.3126]
[1755799743920,1.75108574,4253.3,4252.6,0.7831]
[1755799744092,1.75108574,4253.3,4252.6,0.001]
[1755799744274,0.4736,4253.2,4252.6,0.001]
[1755799744593,0.02939032,4253.1,4252.6,0.001]
[1755799744996,0.3123,4252.7,4252.6,0.001]
[1755799745370,0.0293917,4252.9,4252.6,0.001]
[1755799745796,0.3123,4252.7,4252.6,0.001]
[1755799746259,0.34169309,4252.7,4252.6,0.001]
[1755799746470,0.02939309,4252.7,4252.6,0.001]
[1755799746678,0.02938963,4253.2,4252.6,0.001]
[1755799746878,0.22246864,4253.1,4252.6,0.001]
[1755799747076,0.02939101,4253.0,4252.6,0.001]
[1755799747277,1.7216968,4253.3,4252.6,0.001]
[1755799747479,0.002,4253.3,4252.9,0.3116]
[1755799748213,0.002,4253.3,4252.9,0.7693]
[1755799749512,0.002,4253.3,4252.9,0.3116]
[1755799750319,0.002,4253.3,4253.0,0.48121281]
[1755799750528,0.002,4253.3,4253.2,0.2938]
[1755799750683,0.002,4253.3,4252.6,0.001]
[1755799750684,0.2973,4253.3,4252.6,0.001]
[1755799750888,0.02938963,4253.2,4252.6,0.001]
[1755799751913,0.02939032,4253.1,4252.6,0.001]
[1755799752217,0.002,4253.3,4252.6,0.001]
[1755799752422,0.03138894,4253.3,4252.6,0.001]
[1755799753294,0.002,4253.3,4252.6,0.001]
[1755799753618,0.03138894,4253.3,4252.6,0.001]
[1755799754199,0.03138894,4253.3,4253.2,0.2938]
[1755799754402,0.03138894,4253.3,4253.2,0.7515]
[1755799754403,0.002,4253.3,4253.2,0.7515]
[1755799756526,0.002,4253.3,4252.6,0.001]
[1755799756527,0.7636,4253.3,4252.6,0.001]
[1755799756713,0.02938963,4253.2,4252.6,0.001]
[1755799756919,0.2953,4252.7,4252.6,0.001]
[1755799757631,0.49568963,4253.2,4252.6,0.001]
[1755799757832,0.4663,4253.2,4252.6,0.001]
[1755799758616,0.49568963,4253.2,4252.6,0.001]
[1755799758823,0.4663,4253.2,4252.6,0.001]
[1755799759226,0.02939032,4253.1,4252.6,0.001]
[1755799760029,0.49569032,4253.1,4252.6,0.001]
[1755799760422,0.4663,4253.1,4252.6,0.001]
[1755799761035,0.002,4253.3,4252.6,0.001]
[1755799761418,0.002,4253.3,4252.7,0.4577]
[1755799761623,0.002,4253.3,4253.2,0.2938]
[1755799762531,0.002,4253.3,4252.6,0.001]
[1755799762532,0.1104,4253.3,4252.6,0.001]
[1755799762740,0.02938963,4253.2,4252.6,0.001]
[1755799763147,0.4627,4253.1,4252.6,0.001]
[1755799763334,0.02939101,4253.0,4252.6,0.001]
[1755799763534,0.44769101,4253.4,4252.6,0.001]
[1755799764230,0.1084,4252.7,4252.6,0.001]
[1755799765618,0.5343,4252.7,4252.6,0.001]
[1755799766438,0.1084,4252.7,4252.6,0.001]
[1755799767952,3.0,4253.2,4252.6,0.001]
[1755799767953,4.809,4253.6,4252.6,0.2948]
[1755799768116,2.4584,4253.6,4252.6,0.7525]
[1755799769360,0.0715,4252.7,4252.6,0.001]
[1755799769946,0.5338,4252.7,4252.6,0.001]
[1755799771257,0.0715,4252.7,4252.6,0.001]
[1755799773157,0.4623,4253.1,4252.6,0.001]
[1755799773344,1.71562791,4253.0,4252.6,0.001]
[1755799773548,0.2953,4252.7,4252.6,0.001]
[1755799773725,1.71562791,4253.0,4252.6,0.001]
[1755799774145,0.0715,4252.7,4252.6,0.001]
[1755799774840,0.5338,4252.7,4252.6,0.001]
[1755799775583,0.0715,4252.7,4252.6,0.001]
[1755799775792,0.4623,4253.0,4252.6,0.001]
[1755799776492,0.0754,4252.7,4252.6,0.001]
[1755799777047,0.5339,4252.7,4252.6,0.001]
[1755799778298,17.22587911,4252.7,4252.6,0.001]
[1755799778497,19.60846702,4252.7,4252.6,0.001]
[1755799778786,3.66,4252.6,4252.1,0.001]
[1755799778972,0.7393,4252.2,4252.1,0.001]
[1755799779413,1.194,4252.2,4252.1,0.001]
[1755799779602,1.41451982,4252.2,4252.1,0.001]
[1755799779802,5.2548718,4252.2,4252.1,0.001]
[1755799780097,2.76267914,4252.2,4252.1,0.001]
[1755799780275,2.25468608,4252.2,4252.1,0.001]
[1755799780789,1.13998608,4252.2,4252.1,0.001]
[1755799780995,0.2925341,4252.2,4252.1,0.001]
[1755799781194,0.0722,4252.2,4252.1,0.001]
[1755799782707,0.5378,4252.2,4252.1,0.001]
[1755799783127,0.0722,4252.2,4252.1,0.001]
[1755799783404,4.1978,4252.2,4252.1,0.001]
[1755799783604,5.03857389,4252.2,4252.1,0.001]
[1755799784383,0.91297389,4252.2,4252.1,0.001]
[1755799784708,3.0,4252.6,4252.1,0.3129]
[1755799786199,3.4656,4252.6,4252.1,0.001]
[1755799786824,3.0,4252.6,4252.1,0.001]
[1755799786971,1.809,4252.7,4252.2,0.4622]
[1755799787313,4.809,4252.7,4252.2,0.4622]
[1755799788281,4.809,4252.7,4252.1,0.001]
[1755799788479,4.809,4252.7,4252.3,0.4622]
[1755799788675,3.0,4252.7,4252.3,0.4622]
[1755799789506,3.0,4252.7,4252.1,0.001]
[1755799791110,1.811,4253.3,4252.6,0.3119]
[1755799791423,3.0,4252.9,4252.6,0.3119]
[1755799791577,5.801,4253.3,4252.7,0.4622]
[1755799791919,3.0,4253.2,4252.7,0.4622]
[1755799792075,3.0,4253.2,4252.1,0.001]
[1755799792278,3.0,4253.2,4252.2,0.4622]
[1755799794324,3.0,4253.2,4252.1,0.001]
[1755799794680,3.0,4253.2,4252.2,0.4622]
[1755799794884,3.4656,4253.2,4252.2,0.4622]
[1755799795510,3.0,4253.2,4252.2,0.4622]
[1755799795910,3.4656,4253.2,4252.2,0.4622]
[1755799796414,3.0,4253.2,4252.2,0.4622]
[1755799797020,0.4656,4253.1,4252.1,0.001]
[1755799797217,0.4656,4253.1,4252.1,0.4632]
[1755799797596,3.0,4253.0,4252.1,0.001]
[1755799798292,1.39246,4253.1,4252.1,0.001]
[1755799798615,1.811,4253.3,4252.1,0.001]
[1755799798839,3.0,4253.0,4252.2,0.4622]
[1755799800333,3.0,4253.0,4252.1,0.001]
[1755799800493,0.2937,4252.3,4252.1,0.001]
[1755799805629,5.06770857,4252.2,4252.1,0.001]
[1755799805829,18.75968768,4252.2,4252.1,0.001]
[1755799806290,18.53954911,4252.2,4252.1,0.001]
[1755799806491,19.3989101,4252.2,4252.1,0.001]
[1755799806730,19.17879395,4252.2,4252.1,0.001]
[1755799806892,19.39888206,4252.2,4252.1,0.001]
[1755799808323,23.2558305,4252.2,4252.1,0.001]
[1755799808493,5.57485139,4252.2,4252.1,0.001]
[1755799808698,9.05665591,4252.2,4252.1,0.001]
[1755799808939,0.72197,4252.2,4252.1,0.001]
[1755799809097,4.2827,4252.2,4252.1,0.001]
[1755799809293,7.2827,4252.2,4252.1,0.001]
[1755799809495,7.7218,4252.2,4252.1,0.001]
[1755799810944,7.2827,4252.2,4252.1,0.001]
[1755799811899,7.7218,4252.2,4252.1,0.001]
[1755799812220,8.67488,4252.2,4252.1,0.001]
[1755799814871,23.02685911,4252.2,4252.1,0.001]
[1755799815162,23.24684982,4252.2,4252.1,0.001]
[1755799815541,23.75370423,4252.2,4252.1,0.001]
[1755799816744,5.5658531,4252.2,4252.1,0.001]
[1755799817001,7.5036731,4252.2,4252.1,0.001]
[1755799817349,0.2937,4252.2,4252.1,0.29]
[1755799817567,3.99,4252.4,4252.1,0.7579]
[1755799817742,3.99,4252.4,4252.1,0.29]
[1755799818074,3.99,4252.4,4252.1,0.001]
[1755799818268,0.2964,4252.2,4252.1,0.001]
[1755799818463,4.2864,4252.2,4252.1,0.001]
[1755799818639,3.99,4252.2,4252.1,0.29]
[1755799819580,6.99,4252.2,4252.1,0.001]
[1755799820275,6.99,4252.2,4252.1,0.29]
[1755799820485,6.99,4252.2,4252.1,0.001]
[1755799820686,6.99,4252.2,4252.1,0.29]
[1755799820880,3.0,4252.2,4252.1,0.7579]
[1755799822091,4.0254,4252.2,4252.1,0.001]
[1755799822393,4.6854,4252.2,4252.1,0.001]
[1755799822912,8.6754,4252.2,4252.1,0.001]
[1755799823413,8.89535973,4252.2,4252.1,0.001]
[1755799824800,8.6754,4252.2,4252.1,0.001]
[1755799824999,8.89538888,4252.2,4252.1,0.001]
[1755799827210,9.53446979,4252.2,4252.1,0.001]
[1755799828005,9.53458665,4252.2,4252.1,0.001]
[1755799832397,17.45575017,4252.2,4252.1,0.001]
[1755799833576,17.02675017,4252.2,4252.1,0.001]
[1755799833777,17.46585017,4252.2,4252.1,0.001]
[1755799834214,17.46631224,4252.2,4252.1,0.001]
[1755799834698,17.46631145,4252.2,4252.1,0.001]
[1755799836011,47.46631145,4252.2,4252.1,0.001]
[1755799836393,47.46631145,4252.2,4251.9,0.001]
[1755799836394,33.66,4252.1,4251.9,0.001]
[1755799836592,40.61604793,4252.0,4251.9,0.001]
[1755799836910,11.05514793,4252.0,4251.9,0.001]
[1755799837577,6.62604793,4252.0,4251.9,0.001]
[1755799837783,10.61604793,4252.0,4251.9,0.001]
[1755799838008,12.79938247,4252.0,4251.9,0.001]
[1755799840215,12.50298247,4252.0,4251.9,0.2962]
[1755799841495,12.37075446,4252.0,4251.9,0.2962]
[1755799841688,7.21371587,4252.0,4251.9,0.7458]
[1755799841886,6.02038133,4252.0,4251.9,0.7458]
[1755799842199,9.02038133,4252.0,4251.9,0.7458]
[1755799843416,9.02035861,4252.0,4251.9,0.7458]
[1755799844322,3.0,4252.0,4251.9,0.7458]
[1755799844616,7.92116352,4252.4,4251.9,0.7458]
[1755799844617,3.99,4252.4,4251.9,0.7458]
[1755799844783,0.22035227,4252.3,4252.0,0.4496]
[1755799844989,3.0,4252.4,4251.9,0.2962]
[1755799844990,11.91116352,4252.4,4252.2,0.2952]
[1755799845202,3.85315932,4252.3,4252.2,0.2952]
[1755799845485,3.85315932,4252.3,4251.9,0.001]
[1755799845709,3.0,4252.1,4251.9,0.001]
[1755799845992,3.85315932,4252.3,4252.0,0.7448]
[1755799846223,3.0,4252.1,4252.0,0.2952]
[1755799847229,3.0,4252.1,4252.0,0.7448]
[1755799847531,3.6993042,4252.1,4252.0,0.7448]
[1755799848422,3.91965276,4252.1,4252.0,0.2952]
[1755799850892,3.91965276,4252.1,4252.0,0.7448]
[1755799851105,3.91965276,4252.1,4252.0,0.2952]
[1755799851692,3.91965276,4252.1,4252.0,0.7448]
[1755799851887,3.6993042,4252.1,4252.0,0.7448]
[1755799852127,0.002,4252.6,4252.0,0.7448]
[1755799852296,3.99,4252.5,4252.0,0.2952]
[1755799852627,3.22045187,4252.4,4252.1,0.4496]
[1755799852829,3.0,4252.4,4252.1,0.4496]
[1755799853220,3.0,4252.4,4252.3,0.2952]
[1755799853627,3.0,4252.4,4252.3,0.7448]
[1755799853937,11.90596352,4252.4,4251.9,0.001]
[1755799854241,3.0,4252.2,4251.9,0.001]
[1755799854406,3.989,4252.1,4251.9,0.001]
[1755799856135,3.0,4252.0,4251.9,0.001]
[1755799856441,3.6989,4252.0,4251.9,0.001]
[1755799856742,3.6989,4252.0,4251.9,0.2962]
[1755799857437,11.90566352,4252.0,4251.9,0.001]
[1755799860042,43.21549295,4252.0,4251.9,0.001]
[1755799860339,43.8553233,4252.0,4251.9,0.001]
[1755799860742,13.8553233,4252.0,4251.9,0.001]
[1755799861244,13.50279073,4252.0,4251.9,0.001]
[1755799861438,13.85538713,4252.0,4251.9,0.001]
[1755799861845,13.85536837,4252.0,4251.9,0.001]
[1755799864825,16.46926837,4252.0,4251.9,0.2962]
[1755799865130,16.99705355,4252.0,4251.9,0.2962]
[1755799865530,16.99705355,4252.0,4251.9,0.001]
[1755799865734,16.99705355,4252.0,4251.9,0.2962]
[1755799866335,17.28265355,4252.0,4251.9,0.001]